bitfinex/quotes_BTCUSD_20251120
["timestamp","ask_amount","ask_price","bid_price","bid_amount"]
[1763671593018,0.02779,86654.0,86653.0,9.361e-05]
[1763671593430,0.05076,86654.0,86653.0,9.361e-05]
[1763671593832,0.05076,86654.0,86653.0,0.00158261]
[1763671594783,0.01136,86654.0,86653.0,0.00158261]
[1763671594988,0.001,86654.0,86653.0,0.00158261]
[1763671595197,0.01743,86654.0,86653.0,0.00158261]
[1763671595370,0.0404,86654.0,86653.0,0.00158261]
[1763671595786,0.0394,86654.0,86653.0,0.00158261]
[1763671596226,0.11476708,86647.0,86627.0,0.10954969]
[1763671596425,0.11476708,86647.0,86627.0,9.365e-05]
[1763671596736,0.78512069,86640.0,86627.0,9.365e-05]
[1763671596913,0.02297,86646.0,86627.0,9.365e-05]
[1763671597117,0.01136,86639.0,86627.0,9.365e-05]
[1763671598205,0.01236,86639.0,86627.0,9.365e-05]
[1763671598824,0.05298676,86638.0,86627.0,9.365e-05]
[1763671599022,0.02297,86638.0,86627.0,9.365e-05]
[1763671599424,0.01643,86628.0,86627.0,9.365e-05]
[1763671599684,0.939079,86628.0,86627.0,9.365e-05]
[1763671599864,0.97028661,86628.0,86627.0,9.365e-05]
[1763671600055,0.91743061,86628.0,86627.0,9.365e-05]
[1763671600256,0.471473,86626.0,86620.0,0.0002]
[1763671600458,0.14478461,86628.0,86620.0,0.00061851]
[1763671600459,0.01643,86621.0,86620.0,0.00061851]
[1763671601021,0.325,86628.0,86620.0,0.00061851]
[1763671601196,0.01136,86665.0,86620.0,0.00061851]
[1763671601197,0.01136,86633.0,86620.0,0.00061851]
[1763671601596,0.01643,86621.0,86620.0,0.00061851]
[1763671601799,0.13773708,86632.0,86620.0,0.00061851]
[1763671601800,0.78512069,86630.0,86620.0,0.00061851]
[1763671602001,0.80809069,86630.0,86620.0,0.00061851]
[1763671602200,0.78512069,86630.0,86629.0,0.00076076]
[1763671602435,0.11476708,86632.0,86629.0,0.00076076]
[1763671602633,0.01643,86630.0,86620.0,0.00061851]
[1763671602996,0.01136,86633.0,86621.0,0.11476708]
[1763671603194,0.33436,86639.0,86621.0,0.08362037]
[1763671603195,0.001,86628.0,86621.0,0.08362037]
[1763671603597,0.01136,86639.0,86627.0,0.00129]
[1763671603807,0.01136,86639.0,86621.0,0.08362037]
[1763671604692,0.01136,86639.0,86620.0,0.00061851]
[1763671605133,0.01236,86639.0,86620.0,0.00061851]
[1763671605309,0.01236,86639.0,86621.0,0.11476708]
[1763671605511,0.0181192,86635.0,86621.0,0.11476708]
[1763671606115,0.0181192,86635.0,86622.0,0.01385329]
[1763671606928,0.0181192,86635.0,86622.0,0.01514329]
[1763671607127,0.0191192,86635.0,86622.0,0.01514329]
[1763671607533,0.0191192,86635.0,86623.0,0.00129]
[1763671607980,0.0191192,86635.0,86629.0,0.00076076]
[1763671608154,0.0191192,86635.0,86634.0,0.00129]
[1763671608477,0.001,86635.0,86634.0,0.00129]
[1763671609056,0.001,86635.0,86634.0,0.00258]
[1763671609261,0.51136,86655.0,86634.0,0.00258]
[1763671609463,0.02137415,86654.0,86634.0,0.00258]
[1763671609643,0.323,86661.0,86635.0,0.11605708]
[1763671609842,0.323,86659.0,86635.0,0.11605708]
[1763671610047,0.78512069,86670.0,86636.0,0.00129]
[1763671610048,0.02137524,86658.0,86636.0,0.00129]
[1763671610245,0.01730822,86664.0,86636.0,0.00129]
[1763671610445,0.323,86661.0,86635.0,0.03405708]
[1763671611023,0.3546614,86661.0,86635.0,0.03405708]
[1763671611416,0.01811569,86655.0,86635.0,0.03405708]
[1763671612675,0.01811569,86655.0,86648.0,0.11476708]
[1763671613081,0.01730642,86673.0,86648.0,0.11476708]
[1763671613640,0.03433,86671.0,86635.0,0.07436919]
[1763671613835,0.07151431,86670.0,86648.0,0.11476708]
[1763671614046,0.04440796,86669.0,86635.0,0.0331508]
[1763671614386,0.02143796,86668.0,86648.0,0.11476708]
[1763671614553,0.1363719,86668.0,86648.0,0.11476708]
[1763671614880,0.02143796,86667.0,86648.0,0.11476708]
[1763671616427,0.01811417,86663.0,86648.0,0.11476708]
[1763671617482,0.01811417,86663.0,86648.0,0.06476708]
[1763671620327,0.02947417,86663.0,86648.0,0.06476708]
[1763671620728,0.01811417,86663.0,86648.0,0.06476708]
[1763671620935,0.01811417,86663.0,86648.0,0.07126914]
[1763671621156,0.01811417,86663.0,86648.0,0.06476708]
[1763671621374,0.33436,86675.0,86648.0,0.06476708]
[1763671621598,0.02147893,86674.0,86648.0,0.06476708]
[1763671621854,0.02147893,86673.0,86648.0,0.06476708]
[1763671622101,0.02147893,86672.0,86648.0,0.06476708]
[1763671622276,0.33436,86675.0,86650.0,0.78512069]
[1763671622277,0.06967553,86671.0,86650.0,0.78512069]
[1763671622491,0.02147893,86670.0,86648.0,0.06476708]
[1763671622678,0.001,86674.0,86649.0,0.01384897]
[1763671623044,0.15953484,86673.0,86649.0,0.11476708]
[1763671623254,0.02148776,86672.0,86649.0,0.11476708]
[1763671623464,0.03096716,86671.0,86649.0,0.11476708]
[1763671623688,0.03879478,86670.0,86649.0,0.11476708]
[1763671623912,0.02726,86650.0,86645.0,0.00025354]
[1763671624153,0.01527,86646.0,86645.0,0.00025354]
[1763671624593,0.01527,86646.0,86619.0,0.04131211]
[1763671624594,0.723732,86645.0,86613.0,0.01531434]
[1763671624805,0.11476708,86634.0,86613.0,0.00041851]
[1763671625040,0.02328,86633.0,86613.0,0.00041851]
[1763671625242,0.323,86645.0,86613.0,0.00041851]
[1763671625243,0.13804708,86639.0,86613.0,0.00041851]
[1763671625856,0.02328,86638.0,86613.0,0.00041851]
[1763671626065,0.001,86634.0,86613.0,0.00041851]
[1763671626518,0.11476708,86639.0,86613.0,0.00041851]
[1763671626696,0.02328,86635.0,86613.0,0.00041851]
[1763671626933,0.23228908,86669.0,86614.0,0.11476708]
[1763671626934,0.02328,86647.0,86614.0,0.11476708]
[1763671627139,0.02147383,86645.0,86620.0,0.78512069]
[1763671627347,0.02147383,86644.0,86621.0,0.01385345]
[1763671627545,0.0181182,86646.0,86621.0,0.01385345]
[1763671627546,0.02147383,86643.0,86621.0,0.01385345]
[1763671627752,0.02147383,86642.0,86615.0,0.323]
[1763671628031,0.0181182,86646.0,86616.0,0.04381856]
[1763671628246,0.001,86634.0,86616.0,0.04381856]
[1763671628671,0.0181182,86646.0,86615.0,0.323]
[1763671628904,0.001,86642.0,86615.0,0.323]
[1763671629114,0.0181182,86646.0,86615.0,0.323]
[1763671629326,0.0181182,86646.0,86616.0,0.01385425]
[1763671630090,0.001,86642.0,86637.0,0.00025358]
[1763671630871,0.01527,86638.0,86637.0,0.00025358]
[1763671631070,0.05398171,86638.0,86637.0,0.00025358]
[1763671631434,0.0181182,86646.0,86637.0,0.00025358]
[1763671631616,0.02148135,86645.0,86637.0,0.00025358]
[1763671631825,0.0181182,86646.0,86637.0,0.00025358]
[1763671632161,0.01811893,86644.0,86614.0,0.08002065]
[1763671632331,0.323,86644.0,86615.0,0.01151856]
[1763671632546,0.78512069,86640.0,86615.0,0.01151856]
[1763671632939,0.46930345,86640.0,86614.0,0.08002065]
[1763671633484,0.46930345,86640.0,86615.0,0.01190849]
[1763671633685,0.11476708,86643.0,86615.0,0.01190849]
[1763671633951,0.0181182,86646.0,86627.0,0.11476708]
[1763671634155,0.0181182,86646.0,86628.0,0.01385233]
[1763671634351,0.001,86644.0,86628.0,0.01385233]
[1763671634800,0.0181182,86646.0,86628.0,0.01385233]
[1763671635112,0.001,86646.0,86628.0,0.01385233]
[1763671635335,0.01811685,86642.0,86630.0,0.46930345]
[1763671635544,0.01811685,86642.0,86631.0,0.01385185]
[1763671635862,0.01199,86657.0,86631.0,0.01385185]
[1763671636058,0.01199,86657.0,86632.0,0.01286189]
[1763671636265,0.46930345,86660.0,86640.0,0.11476708]
[1763671636871,0.61476708,86669.0,86640.0,0.11476708]
[1763671637095,0.55459748,86668.0,86640.0,0.11476708]
[1763671637317,0.51578865,86668.0,86640.0,0.11476708]
[1763671637490,0.02328,86676.0,86640.0,0.58420645]
[1763671637728,0.323,86673.0,86640.0,0.58420645]
[1763671637898,0.001,86657.0,86640.0,0.58420645]
[1763671638098,0.01811464,86665.0,86641.0,0.323]
[1763671638318,0.01811464,86665.0,86642.0,0.03566369]
[1763671638731,0.01559549,86664.0,86641.0,0.323]
[1763671638868,0.01559549,86664.0,86640.0,0.114903]
[1763671638869,0.48741831,86660.0,86640.0,0.114903]
[1763671639077,0.01730922,86659.0,86640.0,0.00013592]
[1763671639452,0.1553563,86659.0,86620.0,0.46930345]
[1763671639599,0.1553563,86659.0,86628.0,0.01147671]
[1763671639798,0.04058922,86659.0,86628.0,0.01147671]
[1763671640028,0.1320763,86659.0,86628.0,0.01147671]
[1763671640205,0.02328,86658.0,86628.0,0.01147671]
[1763671640429,0.08158708,86657.0,86629.0,0.01263801]
[1763671640744,0.02874574,86657.0,86629.0,0.01263801]
[1763671641621,0.46930345,86650.0,86629.0,0.01263801]
[1763671641805,0.02874574,86657.0,86627.0,0.0001363]
[1763671641806,0.46930345,86640.0,86627.0,0.0001363]
[1763671642001,0.03527,86657.0,86635.0,0.11476708]
[1763671642002,0.01199,86657.0,86635.0,0.11476708]
[1763671642175,0.01199,86657.0,86636.0,0.01385105]
[1763671642381,0.33499,86657.0,86637.0,0.01287601]
[1763671642585,0.33499,86657.0,86638.0,0.01385073]
[1763671642789,0.01199,86657.0,86638.0,0.01385073]
[1763671642969,0.03527,86657.0,86638.0,0.01385073]
[1763671643168,0.46930345,86650.0,86635.0,0.00014195]
[1763671643489,0.01731122,86649.0,86635.0,0.00014195]
[1763671644038,0.01731002,86655.0,86635.0,0.00014195]
[1763671644243,0.11476708,86646.0,86635.0,0.00014195]
[1763671644436,0.46930345,86645.0,86635.0,0.00014195]
[1763671644610,0.11476708,86646.0,86635.0,0.00014195]
[1763671645196,0.01731202,86645.0,86635.0,0.00014195]
[1763671645434,0.01527,86636.0,86635.0,0.00014195]
[1763671645632,0.03527,86644.0,86635.0,0.00014195]
[1763671645828,0.01527,86636.0,86635.0,0.00014195]
[1763671646436,0.323,86642.0,86635.0,0.00014195]
[1763671646637,0.323,86643.0,86612.0,0.08376392]
[1763671646834,0.323,86643.0,86612.0,0.08418243]
[1763671647093,0.46930345,86640.0,86612.0,0.08418243]
[1763671647266,0.01199,86644.0,86613.0,0.00841824]
[1763671647471,0.01199,86644.0,86613.0,0.02227297]
[1763671647641,0.46930345,86650.0,86614.0,0.01798]
[1763671647996,0.001,86643.0,86615.0,0.01385441]
[1763671648198,0.001,86643.0,86615.0,0.02584441]
[1763671648402,0.11476708,86645.0,86615.0,0.02584441]
[1763671648574,0.001,86644.0,86642.0,0.00599]
[1763671648980,0.11476708,86645.0,86642.0,0.00599]
[1763671649421,0.01811768,86644.0,86642.0,0.00599]
[1763671649618,0.46930345,86650.0,86642.0,0.00599]
[1763671649826,0.46930345,86650.0,86642.0,0.0061155]
[1763671650608,0.13016,86656.0,86642.0,0.0061155]
[1763671650811,0.01162,86643.0,86642.0,0.0001255]
[1763671651583,0.0297372,86643.0,86642.0,0.0001255]
[1763671651786,0.0181172,86643.0,86642.0,0.0001255]
[1763671653664,0.0581172,86643.0,86642.0,0.0001255]
[1763671653872,0.06690106,86643.0,86642.0,0.0001255]
[1763671654285,0.0339572,86643.0,86642.0,0.0001255]
[1763671654435,0.0581172,86643.0,86642.0,0.0001255]
[1763671654631,0.0339572,86643.0,86642.0,0.0001255]
[1763671654854,0.0181172,86643.0,86642.0,0.0001255]
[1763671656021,0.0581172,86643.0,86642.0,0.0001255]
[1763671656270,0.0339572,86643.0,86642.0,0.0001255]
[1763671656877,0.0581172,86643.0,86642.0,0.0001255]
[1763671658069,0.03095126,86666.0,86642.0,0.0001255]
[1763671658070,0.323,86658.0,86642.0,0.0121155]
[1763671658295,0.0181175,86643.0,86642.0,0.0121155]
[1763671658503,0.00165766,86674.0,86642.0,0.068685]
[1763671658706,0.00165766,86674.0,86642.0,0.0121155]
[1763671658909,0.00165766,86674.0,86641.0,0.3171155]
[1763671659111,0.0017828,86674.0,86641.0,0.3171155]
[1763671659314,0.0017828,86674.0,86650.0,0.11452454]
[1763671659747,0.0017828,86674.0,86650.0,0.58382799]
[1763671659954,0.001,86658.0,86650.0,0.58382799]
[1763671660161,0.0017828,86674.0,86650.0,0.58382799]
[1763671660366,0.0027828,86674.0,86650.0,0.58382799]
[1763671660798,0.0017828,86674.0,86663.0,0.11476708]
[1763671661347,0.01811267,86672.0,86663.0,0.11476708]
[1763671662977,0.01811168,86670.0,86663.0,0.11476708]
[1763671663189,0.01811267,86672.0,86663.0,0.11476708]
[1763671663392,0.0017828,86674.0,86663.0,0.11476708]
[1763671664130,0.28748558,86690.0,86663.0,0.11476708]
[1763671664387,0.01241,86685.0,86664.0,0.01147671]
[1763671664687,0.5,86697.0,86664.0,0.01147671]
[1763671665861,0.5,86697.0,86663.0,0.08136893]
[1763671666266,0.01811169,86687.0,86663.0,0.08136893]
[1763671666461,0.03622323,86687.0,86663.0,0.08136893]
[1763671666868,0.01811154,86687.0,86663.0,0.08136893]
[1763671667072,0.46930345,86673.0,86663.0,0.00012514]
[1763671667292,0.13892708,86686.0,86663.0,0.00012514]
[1763671667293,0.11476708,86672.0,86663.0,0.00012514]
[1763671667500,0.01241,86672.0,86663.0,0.00012514]
[1763671667838,0.323,86685.0,86663.0,0.00012514]
[1763671668046,0.11476708,86684.0,86663.0,0.00012514]
[1763671670204,0.11576708,86684.0,86663.0,0.00012514]
[1763671671396,0.001,86684.0,86664.0,0.11476708]
[1763671671598,0.001,86684.0,86665.0,0.01384642]
[1763671672028,0.001,86684.0,86664.0,0.11476708]
[1763671672384,0.01811154,86687.0,86664.0,0.11476708]
[1763671672963,0.01811154,86687.0,86664.0,0.04776708]
[1763671673957,0.01911154,86687.0,86664.0,0.04776708]
[1763671674339,0.01911154,86687.0,86665.0,0.01384642]
[1763671675125,0.01811154,86687.0,86665.0,0.01384642]
[1763671675335,0.01811154,86687.0,86665.0,0.01361121]
[1763671675755,0.01811154,86687.0,86665.0,0.01384642]
[1763671676364,0.02416,86686.0,86663.0,0.00012514]
[1763671676587,0.01811154,86687.0,86663.0,0.00012514]
[1763671676588,0.01811154,86687.0,86664.0,0.11476708]
[1763671676788,0.01811154,86687.0,86665.0,0.01384642]
[1763671677539,0.01811154,86687.0,86664.0,0.11476708]
[1763671680155,0.01811154,86687.0,86664.0,0.06476708]
[1763671680377,0.01811137,86682.0,86664.0,0.06476708]
[1763671681105,0.01811148,86678.0,86664.0,0.06476708]
[1763671683290,0.01811148,86678.0,86669.0,0.323]
[1763671683490,0.01811148,86678.0,86670.0,0.06594811]
[1763671683695,0.01811137,86682.0,86670.0,0.05210249]
[1763671683902,0.01811137,86682.0,86669.0,0.323]
[1763671684305,0.01811137,86682.0,86664.0,0.06476708]
[1763671684891,0.01811137,86682.0,86674.0,0.03108571]
[1763671685098,0.01811137,86682.0,86676.0,0.03108571]
[1763671685300,0.01811137,86682.0,86678.0,0.03108571]
[1763671685946,0.0119,86699.0,86678.0,0.03108571]
[1763671686297,0.0119,86699.0,86671.0,0.323]
[1763671686298,0.0119,86699.0,86680.0,0.03108571]
[1763671686652,0.01241,86710.0,86686.0,0.03108571]
[1763671686900,0.01241,86710.0,86688.0,0.03108571]
[1763671687111,0.01241,86710.0,86689.0,0.03108571]
[1763671687318,0.11476708,86707.0,86690.0,0.03108571]
[1763671687531,0.11476708,86707.0,86688.0,0.03108571]
[1763671687736,0.01295292,86706.0,86688.0,0.03108571]
[1763671687936,0.02285,86707.0,86688.0,0.01408571]
[1763671688158,0.11476708,86705.0,86683.0,0.04144762]
[1763671688330,0.01810818,86702.0,86684.0,0.04144762]
[1763671689189,0.01810818,86702.0,86683.0,0.04144762]
[1763671690177,0.01810818,86702.0,86684.0,0.04144762]
[1763671690376,0.01810818,86702.0,86685.0,0.01384322]
[1763671690583,0.01810818,86702.0,86687.0,0.04144762]
[1763671690808,0.01810818,86702.0,86688.0,0.05529036]
[1763671691009,0.01810818,86702.0,86686.0,0.04144762]
[1763671691530,0.01810818,86702.0,86687.0,0.04144762]
[1763671691732,0.01810818,86702.0,86685.0,0.04144762]
[1763671692153,0.0119,86701.0,86685.0,0.04144762]
[1763671692299,0.0119,86701.0,86684.0,0.04144762]
[1763671693067,0.0119,86701.0,86681.0,0.04144762]
[1763671693068,0.60692053,86700.0,86681.0,0.04144762]
[1763671693198,0.60692053,86700.0,86678.0,0.04144762]
[1763671693399,0.02285,86699.0,86680.0,0.04144762]
[1763671693613,0.02285,86699.0,86681.0,0.04144762]
[1763671694212,0.0119,86701.0,86681.0,0.04144762]
[1763671694396,0.11476708,86700.0,86681.0,0.04144762]
[1763671695049,0.7854633,86700.0,86680.0,0.04151785]
[1763671695246,0.0119,86701.0,86667.0,0.323]
[1763671695247,0.12861078,86699.0,86667.0,0.323]
[1763671695655,0.02285,86698.0,86667.0,0.323]
[1763671695879,0.00038005,86686.0,86667.0,0.323]
[1763671696087,0.0138437,86697.0,86661.0,0.323]
[1763671696485,0.02285,86696.0,86661.0,0.323]
[1763671696693,0.0138437,86695.0,86661.0,0.323]
[1763671697110,0.0138437,86695.0,86660.0,0.323]
[1763671697111,0.02285,86694.0,86660.0,0.323]
[1763671697299,0.0138437,86693.0,86660.0,0.323]
[1763671697567,0.0138437,86698.0,86660.0,0.323]
[1763671697767,0.0366937,86698.0,86660.0,0.323]
[1763671698232,0.02285,86697.0,86656.0,0.323]
[1763671698449,0.01810997,86690.0,86656.0,0.323]
[1763671698601,0.01810997,86690.0,86665.0,0.00647671]
[1763671698802,0.01810997,86690.0,86656.0,0.43776708]
[1763671698803,0.11476708,86685.0,86656.0,0.43776708]
[1763671699044,0.7854633,86680.0,86656.0,0.11476708]
[1763671699251,0.02285,86686.0,86656.0,0.11476708]
[1763671699599,0.0119,86679.0,86657.0,0.01147671]
[1763671700037,0.0119,86679.0,86656.0,0.11476708]
[1763671700234,0.01811096,86674.0,86656.0,0.11489222]
[1763671701550,0.01811096,86674.0,86657.0,0.01384769]
[1763671701802,0.01811096,86674.0,86656.0,0.11489222]
[1763671701803,0.01811096,86674.0,86669.0,0.11476708]
[1763671702283,0.01811096,86674.0,86669.0,0.09676708]
[1763671703425,0.01811096,86674.0,86656.0,0.11489222]
[1763671703697,0.01811096,86674.0,86656.0,0.12638144]
[1763671703903,0.01811096,86674.0,86642.0,0.08265466]
[1763671703904,0.01798609,86656.0,86642.0,0.08265466]
[1763671704076,0.01811134,86656.0,86655.0,0.43776708]
[1763671707806,0.01811134,86656.0,86655.0,0.11476708]
[1763671708017,0.01811134,86656.0,86641.0,0.11476708]
[1763671708018,0.01811134,86656.0,86644.0,0.08265466]
[1763671708242,0.01811134,86656.0,86642.0,0.323]
[1763671708372,0.01811134,86656.0,86654.0,0.11476708]
[1763671709180,0.01811134,86656.0,86642.0,0.258]
[1763671709181,0.00012525,86656.0,86642.0,0.258]
[1763671709377,0.00012525,86656.0,86632.0,0.00181656]
[1763671710424,0.01811414,86653.0,86639.0,0.11476708]
[1763671710662,0.00012525,86656.0,86640.0,0.01147671]
[1763671710801,0.00012525,86656.0,86640.0,0.02532712]
[1763671711354,0.00012525,86656.0,86640.0,0.81079042]
[1763671711546,0.00012525,86656.0,86652.0,0.11476708]
[1763671711807,0.00012525,86656.0,86653.0,0.01384833]
[1763671712189,0.00012525,86656.0,86652.0,0.11476708]
[1763671712980,0.00012525,86656.0,86640.0,0.01147671]
[1763671713183,0.00012525,86656.0,86639.0,0.11476708]
[1763671713402,0.01811319,86653.0,86639.0,0.11476708]
[1763671715716,0.01811319,86653.0,86652.0,0.11476708]
[1763671716434,0.01811319,86653.0,86652.0,0.03876708]
[1763671719547,0.01811319,86653.0,86652.0,0.03696847]
[1763671719951,0.01811319,86653.0,86642.0,0.01385009]
[1763671720133,0.01811319,86653.0,86643.0,0.323]
[1763671720134,0.03622606,86653.0,86643.0,0.323]
[1763671721385,0.03622606,86653.0,86642.0,0.11476708]
[1763671721907,0.03622606,86653.0,86643.0,0.01384993]
[1763671722104,0.03622606,86653.0,86642.0,0.11476708]
[1763671723481,0.01811287,86653.0,86642.0,0.13483402]
[1763671723689,0.00012525,86656.0,86642.0,0.13483402]
[1763671723690,0.00012525,86656.0,86643.0,0.03468891]
[1763671723888,0.00012525,86656.0,86644.0,0.01695229]
[1763671724092,0.00012525,86656.0,86645.0,0.01384961]
[1763671724607,0.00012525,86656.0,86646.0,0.01384945]
[1763671724988,0.00012525,86656.0,86648.0,0.04153272]
[1763671725188,0.00012525,86656.0,86649.0,0.04153272]
[1763671725595,0.01233,86672.0,86655.0,0.01372]
[1763671726043,0.01233,86672.0,86655.0,0.02744]
[1763671726276,0.5,86698.0,86671.0,0.02058]
[1763671726492,0.01233,86675.0,86671.0,0.00048178]
[1763671726908,0.11476708,86679.0,86671.0,0.00048178]
[1763671727113,0.12709708,86679.0,86671.0,0.00048178]
[1763671727344,0.01811019,86680.0,86678.0,0.01372]
[1763671727562,0.01811019,86680.0,86679.0,0.01372]
[1763671727765,0.01811019,86680.0,86679.0,0.03433727]
[1763671727974,0.01811019,86680.0,86679.0,0.06897272]
[1763671728179,0.01811019,86680.0,86679.0,0.06898513]
[1763671728398,0.03098449,86730.0,86679.0,0.06898513]
[1763671728399,3.57e-06,86682.0,86679.0,0.40254249]
[1763671728626,0.01233,86719.0,86682.0,0.05210249]
[1763671728842,0.02483,86726.0,86698.0,0.11476708]
[1763671729046,0.11476708,86722.0,86718.0,0.00686]
[1763671729247,0.7854633,86730.0,86718.0,0.00686]
[1763671729417,0.11476708,86723.0,86718.0,0.00686]
[1763671729618,0.323,86722.0,86718.0,0.00524125]
[1763671730033,0.323,86722.0,86718.0,0.00572303]
[1763671730555,0.323,86722.0,86706.0,0.02582277]
[1763671730857,0.323,86722.0,86689.0,0.04154112]
[1763671730858,0.323,86720.0,86691.0,0.11476708]
[1763671731039,0.01729724,86719.0,86702.0,0.03466803]
[1763671731239,0.04212724,86719.0,86691.0,0.11476708]
[1763671731438,0.04212724,86719.0,86692.0,0.03466907]
[1763671731643,0.01729724,86719.0,86692.0,0.03466907]
[1763671731893,0.13206432,86719.0,86693.0,0.01384386]
[1763671732338,0.01810404,86714.0,86693.0,0.01384386]
[1763671733319,0.01810404,86714.0,86692.0,0.03466907]
[1763671733732,0.02483,86713.0,86692.0,0.03466907]
[1763671733962,0.01729864,86712.0,86692.0,0.03466907]
[1763671735923,0.01668741,86712.0,86692.0,0.03466907]
[1763671736417,0.00034834,86693.0,86692.0,0.03466907]
[1763671737653,0.00034834,86693.0,86692.0,0.0348141]
[1763671737862,0.00034834,86693.0,86680.0,0.7854633]
[1763671738068,0.02483,86721.0,86692.0,0.14943743]
[1763671738268,0.13959708,86719.0,86692.0,0.14943743]
[1763671738662,0.02483,86718.0,86692.0,0.14943743]
[1763671738859,0.04212744,86718.0,86692.0,0.14943743]
[1763671739270,0.02483,86717.0,86692.0,0.14943743]
[1763671739464,0.01729784,86716.0,86693.0,0.01494374]
[1763671739893,0.02483,86715.0,86693.0,0.01494374]
[1763671740255,0.01659653,86714.0,86693.0,0.01412893]
[1763671740374,0.02483,86717.0,86693.0,0.01412893]
[1763671740570,0.02771,86694.0,86692.0,0.03467035]
[1763671740821,0.01538,86693.0,86680.0,4.844e-05]
[1763671741017,0.01233,86694.0,86680.0,0.01389246]
[1763671741221,0.01810526,86690.0,86680.0,0.01638207]
[1763671741430,0.01810526,86690.0,86680.0,4.844e-05]
[1763671741628,0.02483,86698.0,86680.0,4.844e-05]
[1763671741801,0.02483,86700.0,86680.0,4.844e-05]
[1763671742030,0.01233,86701.0,86680.0,0.01499767]
[1763671742204,0.02483,86716.0,86687.0,0.11476708]
[1763671742633,0.03486,86712.0,86687.0,0.11476708]
[1763671743010,0.01233,86712.0,86688.0,0.01384274]
[1763671743203,0.01233,86712.0,86688.0,0.01286098]
[1763671743818,0.02962864,86712.0,86688.0,0.01286098]
[1763671744267,0.02962864,86712.0,86687.0,0.11476708]
[1763671744268,0.02253,86711.0,86687.0,0.11476708]
[1763671744606,0.01233,86712.0,86687.0,0.11476708]
[1763671744809,0.01233,86712.0,86687.0,0.07276708]
[1763671745422,0.02253,86711.0,86687.0,0.07276708]
[1763671745616,0.03982884,86711.0,86687.0,0.07276708]
[1763671746038,0.8079933,86710.0,86680.0,0.01499767]
[1763671746249,0.01729924,86709.0,86680.0,0.01499767]
[1763671746455,0.02253,86709.0,86680.0,0.01499767]
[1763671746659,0.0413822,86709.0,86681.0,0.02939927]
[1763671746898,0.01729944,86708.0,86681.0,0.02939927]
[1763671747201,0.03982944,86708.0,86681.0,0.02939927]
[1763671747591,0.03620992,86702.0,86681.0,0.02939927]
[1763671747790,0.03620992,86702.0,86680.0,4.844e-05]
[1763671747996,0.03620992,86702.0,86681.0,0.03103702]
[1763671748196,0.03620992,86702.0,86680.0,4.844e-05]
[1763671748197,0.03620992,86702.0,86682.0,0.03103702]
[1763671748401,0.03620992,86702.0,86683.0,0.04176736]
[1763671748619,0.00025329,86701.0,86684.0,0.03103702]
[1763671749593,0.02278329,86701.0,86683.0,0.03103702]
[1763671749914,0.00589932,86700.0,86681.0,0.03103702]
[1763671750117,0.9061297,86700.0,86681.0,0.03103702]
[1763671750292,0.01157,86681.0,86680.0,4.844e-05]
[1763671750478,0.01157,86681.0,86680.0,0.03108546]
[1763671750661,0.02253,86693.0,86680.0,4.844e-05]
[1763671750863,0.01157,86686.0,86680.0,4.844e-05]
[1763671751495,0.01157,86686.0,86680.0,0.03108546]
[1763671751716,0.01508,86681.0,86680.0,4.844e-05]
[1763671752127,0.01508,86681.0,86669.0,0.02393124]
[1763671752326,0.01157,86686.0,86669.0,0.02073432]
[1763671752497,0.01157,86686.0,86669.0,0.01418708]
[1763671752929,0.13729708,86685.0,86669.0,0.0003413]
[1763671753338,0.02253,86684.0,86669.0,0.0003413]
[1763671754814,0.02253,86684.0,86669.0,0.01418708]
[1763671755282,0.02253,86684.0,86669.0,0.0557282]
[1763671755680,0.02253,86684.0,86670.0,0.04154112]
[1763671756261,0.02253,86684.0,86671.0,0.04154112]
[1763671756468,0.02253,86684.0,86669.0,0.0003413]
[1763671756853,0.02253,86684.0,86669.0,0.01418708]
[1763671757254,0.02253,86684.0,86669.0,0.0557282]
[1763671757665,0.02253,86684.0,86669.0,0.04188242]
[1763671757890,0.0728168,86684.0,86670.0,0.01384562]
[1763671758090,0.0728168,86684.0,86671.0,0.04154112]
[1763671758266,0.0728168,86684.0,86672.0,0.0138453]
[1763671758471,0.0181091,86683.0,86670.0,0.04154112]
[1763671758682,0.0181091,86683.0,86671.0,0.04154112]
[1763671758862,0.0181091,86683.0,86672.0,0.0138453]
[1763671759052,0.0181091,86683.0,86670.0,0.04138642]
[1763671759458,0.0181091,86683.0,86671.0,0.01384546]
[1763671759885,0.0181091,86683.0,86671.0,0.00764984]
[1763671760527,0.02253,86682.0,86669.0,0.01418708]
[1763671760730,0.0181091,86683.0,86671.0,0.11476708]
[1763671760938,0.0181091,86683.0,86669.0,0.0003413]
[1763671761110,0.01157,86687.0,86669.0,0.0003413]
[1763671761429,0.02253,86684.0,86669.0,0.0003413]
[1763671764220,0.01810923,86681.0,86669.0,0.0003413]
[1763671764725,0.02253,86680.0,86669.0,0.0003413]
[1763671765359,0.49129799,86680.0,86669.0,0.0003413]
[1763671765558,0.01776758,86663.0,86658.0,0.06231168]
[1763671765758,0.01776758,86663.0,86658.0,0.06248293]
[1763671766169,0.01776758,86663.0,86658.0,0.02048293]
[1763671766371,0.01776758,86663.0,86659.0,0.01384737]
[1763671766574,0.01776758,86663.0,86659.0,0.11476708]
[1763671766893,0.0358773,86663.0,86659.0,0.11476708]
[1763671770011,0.0358773,86663.0,86660.0,0.01384721]
[1763671771022,0.0358773,86663.0,86659.0,0.11476708]
[1763671771355,0.01810972,86663.0,86659.0,0.11476708]
[1763671775140,0.01810972,86663.0,86661.0,0.05210249]
[1763671775665,0.01157,86697.0,86661.0,0.05210249]
[1763671775666,0.0114,86698.0,86662.0,0.03519]
[1763671775968,0.07570001,86697.0,86680.0,0.54991667]
[1763671776164,0.0114,86698.0,86681.0,0.01074]
[1763671777570,0.04027163,86697.0,86681.0,0.01074]
[1763671777984,0.02297,86696.0,86681.0,0.01074]
[1763671778186,0.01730203,86695.0,86681.0,0.01074]
[1763671778386,0.01730203,86695.0,86670.0,0.01074]
[1763671778628,0.02297,86694.0,86671.0,0.00698672]
[1763671778800,0.01730243,86693.0,86671.0,0.00698672]
[1763671779035,0.01730243,86693.0,86670.0,0.58510667]
[1763671779036,0.11476708,86689.0,86670.0,0.01074]
[1763671779325,0.11476708,86689.0,86660.0,0.54991667]
[1763671779326,0.011,86672.0,86660.0,0.54991667]
[1763671780376,0.011,86672.0,86662.0,0.00074]
[1763671780811,0.011,86672.0,86662.0,0.01458689]
[1763671781073,0.03397,86672.0,86662.0,0.00074]
[1763671781516,0.011,86672.0,86660.0,0.00896324]
[1763671781692,0.02297,86671.0,86660.0,0.00896324]
[1763671782150,0.01811046,86669.0,86660.0,0.00896324]
[1763671785203,0.01811046,86669.0,86651.0,0.00181602]